bitfinex-derivatives/quotes_ETHF0:USTF0_20250530
["timestamp","ask_amount","ask_price","bid_price","bid_amount"]
[1748581245222,0.82847857,2636.2,2636.0,5.10657]
[1748581248212,0.06993857,2636.2,2636.1,0.75854]
[1748581248623,0.00569465,2636.7,2636.6,0.7584]
[1748581248818,1.07968175,2636.7,2636.6,0.7584]
[1748581249022,1.07968175,2636.7,2636.6,1.4042]
[1748581249329,1.07968175,2636.7,2636.6,2.6645]
[1748581249719,0.00569465,2636.7,2636.6,2.6645]
[1748581251222,1.07770242,2636.7,2636.6,2.6645]
[1748581252223,0.00569465,2636.7,2636.6,2.6645]
[1748581252427,0.00569465,2636.7,2636.6,5.8723]
[1748581253120,3.2078,2637.6,2636.9,1.89579]
[1748581253320,1.0711307,2637.5,2637.1,3.2078]
[1748581253526,3.2078,2637.6,2637.1,3.2078]
[1748581253527,3.2078,2637.6,2637.4,0.75815]
[1748581253831,3.2078,2637.6,2637.5,0.6238]
[1748581254018,4.27791534,2637.6,2637.5,0.6238]
[1748581254326,1.07011291,2637.6,2637.5,1.38194]
[1748581254626,2.63879,2637.7,2637.5,1.38194]
[1748581255028,2.63879,2637.7,2637.5,0.6238]
[1748581255223,1.8807,2637.7,2637.5,0.6238]
[1748581255426,1.8807,2637.7,2637.6,0.75811]
[1748581255928,2.6388,2637.7,2637.5,1.9094]
[1748581256225,2.6388,2637.7,2637.5,2.66754]
[1748581256618,1.8807,2637.7,2637.5,2.66754]
[1748581257018,0.6406,2637.7,2637.6,0.75811]
[1748581257424,0.6406,2637.7,2637.5,2.66753]
[1748581258719,4.57305,2637.9,2637.6,0.75811]
[1748581258925,3.2078,2637.9,2637.6,0.6423]
[1748581259120,3.96584,2637.9,2637.6,1.4004]
[1748581259326,1.39942,2638.0,2637.7,0.75808]
[1748581259521,0.75803,2637.9,2637.7,1.97828]
[1748581260125,0.6414,2638.0,2637.7,1.97828]
[1748581260323,0.6414,2638.0,2637.7,1.2202]
[1748581260522,0.75804,2637.9,2637.7,1.97826]
[1748581260921,0.75806,2637.8,2637.7,1.97826]
[1748581261127,0.75805,2637.9,2637.7,1.97826]
[1748581261324,0.75803,2637.9,2637.8,0.75804]
[1748581261519,0.6414,2638.0,2637.7,1.2202]
[1748581261520,1.39941,2638.0,2637.7,1.2202]
[1748581261725,1.39941,2638.0,2637.8,0.75806]
[1748581262021,0.6414,2638.0,2637.8,0.75806]
[1748581262223,3.12802,2637.9,2637.4,3.688]
[1748581262428,0.75814,2637.5,2637.4,3.688]
[1748581263030,3.2078,2638.0,2637.4,3.688]
[1748581263222,1.2329,2638.2,2637.4,4.4492]
[1748581263428,0.75806,2637.8,2637.6,0.7581]
[1748581263828,3.8474,2638.1,2637.7,0.75808]
[1748581263829,0.75804,2637.9,2637.7,0.75808]
[1748581264130,1.99091,2638.0,2637.7,0.75808]
[1748581264331,0.75803,2637.9,2637.7,0.75806]
[1748581264525,1.99093,2637.9,2637.7,0.75806]
[1748581264726,1.99093,2637.9,2637.6,4.4461]
[1748581265225,1.99093,2637.9,2637.7,0.75808]
[1748581265530,1.99093,2637.9,2637.6,3.688]
[1748581265730,1.99093,2637.9,2637.7,0.75807]
[1748581265934,1.2329,2637.9,2637.8,0.75806]
[1748581267330,1.99094,2637.9,2637.6,5.74051]
[1748581267525,1.2329,2637.9,2637.7,0.75807]
[1748581267727,1.99093,2637.9,2637.7,0.75807]
[1748581267926,1.99093,2637.9,2637.6,3.688]
[1748581268432,1.99093,2637.9,2637.6,4.44611]
[1748581268732,0.75806,2637.8,2637.6,3.685]
[1748581269230,0.75806,2637.8,2637.6,4.44311]
[1748581269430,1.99095,2637.9,2637.6,3.685]
[1748581269634,1.99095,2637.9,2637.6,4.44311]
[1748581269930,1.2329,2637.9,2637.7,0.75808]
[1748581270326,1.99093,2637.9,2637.7,0.75808]
[1748581270525,0.06993857,2638.0,2637.6,3.685]
[1748581270725,0.06993857,2638.0,2637.8,0.75804]
[1748581270933,2.14133857,2638.0,2637.8,0.75804]
[1748581271336,1.2837,2637.9,2637.8,0.75804]
[1748581271630,1.2837,2637.9,2637.7,0.75807]
[1748581271831,1.2837,2637.9,2637.8,0.75806]
[1748581272333,2.04173,2637.9,2637.7,0.75807]
[1748581272724,0.75806,2637.8,2637.6,5.5912]
[1748581272927,2.04176,2637.8,2637.6,3.685]
[1748581273127,0.6053,2637.7,2637.6,4.44311]
[1748581273630,0.6053,2637.7,2637.6,3.685]
[1748581273832,0.6053,2637.7,2637.4,3.2078]
[1748581273833,1.889,2637.7,2637.4,3.2078]
[1748581274031,0.75812,2637.6,2637.4,3.96596]
[1748581274333,1.2514,2637.6,2637.5,0.75814]
[1748581275936,0.75814,2637.5,2637.4,6.8928]
[1748581276132,4.4592,2637.6,2637.3,0.63389465]
[1748581276339,0.75816,2637.5,2637.3,5.07708465]
[1748581276528,2.00956,2637.5,2637.3,5.07708465]
[1748581276928,1.2514,2637.4,2637.3,4.31889465]
[1748581277135,1.2514,2637.4,2637.3,5.07709465]
[1748581277340,1.2514,2637.4,2637.3,0.00569465]
[1748581277538,2.00957,2637.4,2637.3,0.00569465]
[1748581278442,1.2514,2637.4,2637.3,0.00569465]
[1748581279041,1.2514,2637.4,2637.3,0.76389465]
[1748581279740,1.2514,2637.4,2637.3,0.00569465]
[1748581280146,2.00957,2637.4,2637.3,0.00569465]
[1748581280446,3.07945257,2637.4,2637.3,0.00569465]
[1748581281046,3.72335257,2637.4,2637.3,0.00569465]
[1748581281342,2.32128257,2637.4,2637.3,0.76389465]
[1748581281739,1.06988257,2637.4,2637.3,0.76389465]
[1748581282043,0.06993857,2637.5,2637.4,0.75817]
[1748581282241,1.89826773,2637.5,2637.3,0.76387465]
[1748581282546,1.0706802,2637.4,2637.3,0.00569465]
[1748581282842,1.0706802,2637.4,2637.3,0.76387465]
[1748581283044,0.06993857,2637.5,2637.4,0.75817]
[1748581283244,1.1405614,2637.5,2637.4,1.41527]
[1748581283446,0.06993857,2637.5,2637.4,2.72787]
[1748581310465,0.06993857,2637.5,2637.3,3.21349465]
[1748581310653,0.6147,2637.4,2637.3,0.76389465]
[1748581310849,1.8308,2637.4,2637.3,0.76389465]
[1748581311460,0.6147,2637.4,2637.3,0.76389465]
[1748581311861,0.06993857,2637.5,2637.4,0.75817]
[1748581312055,8.57e-06,2637.5,2637.4,3.96597]
[1748581314355,3.2078,2638.9,2637.4,8.2078]
[1748581314561,1.0712171,2638.8,2638.2,5.10263]
[1748581314864,1.0712171,2638.7,2638.5,0.75784]
[1748581315054,2.3149171,2638.6,2638.5,0.75784]
[1748581315667,2.31442733,2638.6,2638.5,0.75784]
[1748581316466,1.2437,2638.6,2638.5,0.75784]
[1748581317757,0.6691,2638.9,2638.8,0.75777]
[1748581317963,1.73879481,2638.9,2638.8,0.75777]
[1748581318359,1.06969481,2638.9,2638.8,0.75777]
[1748581318565,1.06969481,2638.9,2638.8,1.42267]
[1748581318766,1.2378,2639.0,2638.9,0.75774]
[1748581319060,2.30684873,2639.0,2638.9,0.75774]
[1748581319456,1.2378,2639.0,2638.9,0.75774]
[1748581324968,1.30773857,2639.0,2638.9,0.75774]
[1748581326762,0.06993857,2639.0,2638.9,0.75774]
[1748581326958,0.06993857,2639.0,2638.9,2.00114]
[1748581329465,0.06993857,2639.0,2638.9,4.43774]
[1748581334673,0.06993857,2639.0,2638.9,0.75774]
[1748581334869,0.06993857,2639.0,2638.9,4.43774]
[1748581339873,0.06993857,2639.0,2638.9,0.75774]
[1748581340081,0.82766857,2639.0,2638.9,3.68]
[1748581340267,0.06993857,2639.0,2638.9,4.43774]
[1748581343676,0.06993857,2639.0,2638.9,0.75774]
[1748581343878,1.35513857,2639.0,2638.9,4.43774]
[1748581345673,1.35513857,2639.0,2638.8,3.2078]
[1748581345873,0.6696,2638.9,2638.8,3.96557]
[1748581346075,0.6696,2638.9,2638.8,7.64557]
[1748581346277,0.6696,2638.9,2638.7,0.00569465]
[1748581346473,2.00827,2638.8,2638.7,0.00569465]
[1748581346675,1.8962,2638.8,2638.7,0.00569465]
[1748581346871,1.8962,2638.8,2638.7,0.76349465]
[1748581347780,1.2505,2638.8,2638.7,0.76349465]
[1748581347980,0.06993857,2639.0,2638.7,0.00569465]
[1748581348182,1.07134161,2638.9,2638.8,0.6047]
[1748581348375,1.07134161,2638.9,2638.8,1.36245]
[1748581351677,0.06993857,2639.0,2638.9,0.75774]
[1748581351871,1.14121057,2639.0,2638.9,0.75774]
[1748581352380,0.06993857,2639.0,2638.9,0.75774]
[1748581353080,1.14121364,2639.0,2638.9,0.75774]
[1748581354476,1.07127507,2639.0,2638.9,0.75774]
[1748581356183,3.3409,2639.1,2639.0,0.75771]
[1748581356383,4.41211101,2639.1,2639.0,0.75771]
[1748581356579,3.65441101,2639.1,2639.0,0.75771]
[1748581356796,1.07121101,2639.1,2639.0,4.43771]
[1748581357091,3.2078,2639.5,2639.2,0.75764]
[1748581357092,0.7576,2639.4,2639.2,0.75764]
[1748581357278,1.07112221,2639.3,2639.2,0.75764]
[1748581357682,1.82875221,2639.3,2639.2,0.75764]
[1748581357990,3.15775221,2639.3,2639.1,0.75766]
[1748581358188,1.82878221,2639.2,2639.1,0.75766]
[1748581358686,1.07112221,2639.2,2639.1,0.75766]
[1748581358890,1.82877221,2639.2,2639.1,0.75766]
[1748581359490,1.07112221,2639.2,2639.1,0.75766]
[1748581360195,1.07142606,2639.2,2639.1,0.75766]
[1748581363008,1.82908606,2639.2,2639.1,0.75766]
[1748581363606,1.07142606,2639.2,2639.1,0.75766]
[1748581364509,1.07129597,2639.2,2639.1,0.75766]
[1748581364708,2.28939597,2639.2,2639.1,0.75766]
[1748581365008,2.28939597,2639.2,2639.1,4.43566]
[1748581365708,0.75771,2639.0,2638.9,3.678]
[1748581365909,1.82900597,2639.0,2638.9,3.678]
[1748581366406,3.10000597,2639.0,2638.9,3.678]
[1748581366808,0.75776,2638.9,2638.8,3.678]
[1748581367001,3.10005597,2638.9,2638.8,3.678]
[1748581367204,3.10005597,2638.9,2638.8,4.43577]
[1748581367503,3.10005597,2638.9,2638.8,3.678]
[1748581367703,3.16999454,2638.9,2638.8,3.678]
[1748581368303,3.16999454,2638.9,2638.8,4.43577]
[1748581368504,2.41223454,2638.9,2638.8,4.43577]
[1748581369610,2.34229597,2638.9,2638.8,4.43577]
[1748581370011,1.07129597,2638.9,2638.8,4.43577]
[1748581370503,0.75771,2639.0,2638.9,0.75774]
[1748581370699,1.89885179,2639.0,2638.9,0.75774]
[1748581370903,1.14114179,2639.0,2638.9,0.75774]
[1748581371405,1.89885179,2639.0,2638.9,0.75774]
[1748581371604,3.11505179,2639.0,2638.9,0.75774]
[1748581372309,3.11505179,2639.0,2638.8,3.678]
[1748581372504,1.82894322,2638.9,2638.8,4.43576]
[1748581372902,2.04386857,2639.0,2638.8,4.43576]
[1748581373210,1.82735908,2638.9,2638.8,4.43576]
[1748581373404,1.06961908,2638.9,2638.8,4.43576]
[1748581373606,1.82735908,2638.9,2638.8,4.43576]
[1748581374310,1.06961908,2638.9,2638.8,7.64356]
[1748581377208,0.06993857,2639.0,2638.9,0.75774]
[1748581377512,0.06993857,2639.0,2638.8,6.8858]
[1748581377513,0.06993857,2639.0,2638.8,3.2078]
[1748581377812,2.02954,2638.9,2638.8,3.678]
[1748581378113,3.09918832,2638.9,2638.7,0.76348465]
[1748581378311,2.34144832,2638.8,2638.7,0.76348465]
[1748581378502,2.34144832,2638.8,2638.7,4.44148465]
[1748581380618,1.06964832,2638.8,2638.7,4.44148465]
[1748581380818,1.47054857,2639.0,2638.8,0.75777]
[1748581381017,1.83365393,2638.9,2638.7,4.44148465]
[1748581381214,1.82750311,2638.8,2638.7,0.00569465]
[1748581381512,2.07427,2638.8,2638.7,3.68369465]
[1748581381717,5.28207,2638.8,2638.7,3.68369465]
[1748581382317,5.28207,2638.8,2638.7,4.44149465]
[1748581383115,5.28207,2638.8,2638.7,0.00569465]
[1748581383817,4.5243,2638.8,2638.7,0.76349465]
[1748581384319,5.28207,2638.8,2638.7,0.76349465]
[1748581384513,4.5243,2638.8,2638.7,0.76349465]
[1748581385918,4.59423857,2638.8,2638.7,0.76349465]
[1748581387320,3.27773857,2638.8,2638.7,0.76349465]
[1748581388323,0.06993857,2638.8,2638.7,0.76349465]
[1748581388818,0.82770857,2638.8,2638.7,0.00569465]
[1748581389023,0.06993857,2638.8,2638.7,0.00569465]
[1748581389322,0.06993857,2638.8,2638.7,0.76349465]
[1748581391218,0.06993857,2638.8,2638.7,0.00569465]
[1748581391414,1.13984611,2638.8,2638.7,0.76349465]
[1748581391619,1.13984611,2638.8,2638.7,0.00569465]
[1748581391916,3.12181611,2638.8,2638.7,0.00569465]
[1748581392324,6.32961611,2638.8,2638.7,0.00569465]
[1748581392526,6.99081611,2638.8,2638.7,0.00569465]
[1748581396721,5.92090857,2638.8,2638.7,0.00569465]
[1748581397027,6.99039291,2638.8,2638.7,0.00569465]
[1748581397727,6.32919291,2638.8,2638.7,0.00569465]
[1748581401333,5.10499291,2638.8,2638.7,0.00569465]
[1748581401532,5.10499291,2638.8,2638.7,1.25739465]
[1748581401832,5.10499291,2638.8,2638.7,0.00569465]
[1748581402138,0.06993857,2638.8,2638.7,4.44579465]
[1748581402331,0.06993857,2638.8,2638.7,5.20359465]
[1748581404034,0.75762,2639.4,2638.7,9.44579465]
[1748581404227,4.4824,2639.7,2638.8,4.9083]
[1748581404426,0.75764,2639.3,2639.1,0.75768]
[1748581404732,0.75764,2639.3,2638.9,1.2323]
[1748581404733,0.75764,2639.3,2639.2,4.9083]
[1748581405233,0.75763,2639.3,2639.2,4.9083]
[1748581405533,0.75763,2639.3,2639.2,1.2323]
[1748581405835,0.75763,2639.3,2639.2,4.9083]
[1748581406034,0.75763,2639.3,2639.2,5.66596]
[1748581406536,0.75761,2639.4,2639.2,5.66596]
[1748581407431,0.75761,2639.4,2639.3,0.6043]
[1748581407636,0.75758,2639.5,2639.4,0.7576]
[1748581407839,0.75758,2639.5,2639.4,2.0341]
[1748581408038,1.2746,2639.6,2639.4,2.0341]
[1748581408733,3.96533,2639.7,2639.5,0.75757]
[1748581408934,3.96533,2639.7,2639.5,1.99097]
[1748581409533,3.96533,2639.7,2639.5,1.99095]
[1748581409534,3.2078,2639.7,2639.5,1.99095]
[1748581409837,3.2078,2639.7,2639.5,1.99096]
[1748581410028,3.96531,2639.7,2639.3,1.2291]
[1748581410233,1.3243,2639.6,2639.5,0.75755]
[1748581410636,3.96531,2639.7,2639.6,0.75754]
[1748581411038,3.2078,2639.7,2639.6,0.75754]
[1748581411740,3.96531,2639.7,2639.6,0.75754]
[1748581412037,3.96531,2639.7,2639.5,0.75755]
[1748581412538,3.2078,2639.7,2639.5,0.75755]
[1748581412738,0.75754,2639.6,2639.4,1.2334]
[1748581413038,3.96532,2639.7,2639.6,0.75754]
[1748581414039,0.75754,2639.6,2639.4,1.2334]
[1748581414232,3.96533,2639.7,2639.6,0.75754]
[1748581414436,5.09651668,2639.7,2639.6,0.75754]
[1748581414834,4.33898668,2639.7,2639.4,1.2334]
[1748581415035,1.81881811,2639.6,2639.5,0.75757]
[1748581415337,1.06124811,2639.6,2639.4,1.2334]
[1748581415530,0.75756,2639.6,2639.5,0.75757]
[1748581415731,1.81852304,2639.6,2639.5,0.75757]
[1748581415941,0.75757,2639.5,2639.4,1.99098]
[1748581416439,3.27773857,2639.7,2639.5,0.75755]
[1748581416640,0.75757,2639.5,2639.4,1.99099]
[1748581416839,3.27773857,2639.7,2639.4,1.2334]
[1748581417140,0.75757,2639.5,2639.4,1.99099]
[1748581417542,2.02036,2639.6,2639.5,0.75757]
[1748581417741,3.08110469,2639.6,2639.5,0.75757]
[1748581417942,3.08110534,2639.6,2639.5,0.75757]
[1748581419047,0.75757,2639.5,2639.4,1.99099]
[1748581419246,2.02036,2639.6,2639.5,0.75757]
[1748581419447,2.3234574,2639.6,2639.5,0.75757]
[1748581419643,1.2628,2639.6,2639.5,0.75757]
[1748581419951,2.32337893,2639.6,2639.5,0.75757]
[1748581420149,3.08093893,2639.6,2639.4,1.99098]
[1748581420344,2.02036,2639.6,2639.4,1.99098]
[1748581421350,2.65716,2639.6,2639.5,0.75757]
[1748581421551,2.45487597,2639.6,2639.5,0.75757]
[1748581422146,1.39436,2639.6,2639.5,0.75757]
[1748581422347,2.45487555,2639.6,2639.5,0.75757]
[1748581422553,1.69731555,2639.6,2639.5,0.75757]
[1748581422751,2.45485555,2639.6,2639.5,0.75757]
[1748581422953,1.69731555,2639.6,2639.5,0.75757]
[1748581423346,1.69755487,2639.6,2639.5,0.75757]
[1748581424053,0.6368,2639.6,2639.5,0.75757]
[1748581424452,3.27773857,2639.7,2639.6,0.75754]
[1748581424648,4.33872635,2639.7,2639.6,0.75754]
[1748581424854,0.06993857,2639.7,2639.6,0.75754]
[1748581426851,1.1313843,2639.7,2639.6,0.75754]
[1748581427354,0.06993857,2639.7,2639.6,0.75754]
[1748581427955,0.06993857,2639.7,2639.6,6.38804]
[1748581427956,8.57e-06,2639.7,2639.6,6.38804]
[1748581431161,8.57e-06,2639.7,2639.6,5.06004]
[1748581436564,8.57e-06,2639.7,2639.6,1.38804]
[1748581436765,8.57e-06,2639.7,2639.6,5.06004]
[1748581436965,8.57e-06,2639.7,2639.6,1.38804]
[1748581437161,8.57e-06,2639.7,2639.6,4.3025]
[1748581437360,8.57e-06,2639.7,2639.6,0.75754]
[1748581437562,8.57e-06,2639.7,2639.6,4.42954]
[1748581440971,8.57e-06,2639.7,2639.6,4.50545]
[1748581441968,0.75751857,2639.7,2639.6,0.07591]
[1748581442172,0.75751857,2639.7,2639.6,3.74791]
[1748581442479,0.75751857,2639.7,2639.6,0.07591]
[1748581443076,9.26918684,2639.7,2638.9,3.672]
[1748581443270,0.75777,2638.8,2638.4,3.2078]
[1748581443468,0.75777,2638.8,2638.3,1.2468]
[1748581443680,0.75797,2638.1,2637.8,7.63784]
[1748581443876,0.75793,2638.3,2638.0,0.75799]
[1748581444076,1.2777,2638.2,2638.0,0.75799]
[1748581444375,1.2777,2638.2,2637.8,6.8798]
[1748581444578,1.2777,2638.2,2638.1,0.75797]
[1748581445584,3.21345725,2638.4,2638.3,0.75791]
[1748581446079,0.00565725,2638.4,2638.3,0.75791]
[1748581447973,0.00565725,2638.4,2638.1,3.2078]
[1748581448173,0.00565725,2638.4,2638.2,4.9172]
[1748581448384,3.21345725,2638.4,2638.2,3.673]
[1748581448581,2.09341,2638.3,2638.2,3.673]
[1748581449079,3.21345725,2638.4,2638.3,0.75791]
[1748581449080,0.00565725,2638.4,2638.3,0.75791]
[1748581449482,0.00565725,2638.4,2638.3,2.00211]
[1748581452383,0.00565725,2638.4,2638.3,4.44091]
[1748581454879,0.00565725,2638.4,2638.3,3.683]
[1748581455187,1.97034725,2638.4,2638.2,3.683]
[1748581455484,1.85455725,2638.4,2638.2,4.44093]
[1748581456092,2.61244725,2638.4,2638.2,4.44093]
[1748581456991,2.61244725,2638.4,2638.2,3.683]
[1748581457785,0.75791,2638.3,2638.2,3.683]
[1748581457977,1.3012,2638.3,2638.0,0.6275]
[1748581458183,0.758,2638.0,2637.9,3.68868343]
[1748581458387,0.758,2638.0,2637.9,0.00568343]
[1748581458689,0.758,2638.0,2637.9,3.68868343]
[1748581459082,4.509,2638.3,2637.9,0.76368343]
[1748581459282,4.509,2638.3,2637.9,0.00568343]
[1748581459691,0.75798,2638.1,2637.9,0.76369343]
[1748581459893,2.0948,2638.0,2637.9,0.00568343]
[1748581460688,1.3368,2638.0,2637.9,0.00568343]
[1748581460889,1.3368,2638.0,2637.9,0.76371343]
[1748581461288,1.526,2638.0,2637.9,0.00568343]
[1748581461589,2.284,2638.0,2637.9,0.00568343]
[1748581462289,1.526,2638.0,2637.9,0.00568343]
[1748581464295,1.526,2638.0,2637.9,0.76371343]
[1748581467600,0.1892,2638.0,2637.9,0.76371343]
[1748581470498,0.1892,2638.0,2637.9,5.30711343]
[1748581472100,0.1892,2638.0,2637.9,2.09931343]
[1748581472999,0.1892,2638.0,2637.9,0.76371343]
[1748581473206,1.5117,2638.0,2637.9,0.76371343]
[1748581474504,0.1892,2638.0,2637.9,0.76371343]
[1748581474701,0.1892,2638.0,2637.9,1.98681343]
[1748581475599,0.9472,2638.0,2637.9,1.98681343]
[1748581476202,0.9472,2638.0,2637.9,0.76371343]
[1748581476404,0.9472,2638.0,2637.9,0.00568343]
[1748581476405,1.01713857,2638.0,2637.9,0.00568343]
[1748581477107,2.08011653,2638.0,2637.9,0.00568343]
[1748581477297,3.34281653,2638.0,2637.9,0.00568343]
[1748581478408,3.34311416,2638.0,2637.9,0.00568343]
[1748581479100,1.32241416,2638.0,2637.9,0.76371343]
[1748581479496,0.25913857,2638.0,2637.9,0.76371343]
[1748581480305,1.32260726,2638.0,2637.9,0.00568343]
[1748581480505,0.25913857,2638.0,2637.9,0.00568343]
[1748581481005,1.32260412,2638.0,2637.9,0.76371343]
[1748581481205,1.32280466,2638.0,2637.9,0.76371343]
[1748581482612,1.32306105,2638.0,2637.9,0.76371343]
[1748581483507,1.32334852,2638.0,2637.9,0.76371343]
[1748581484005,2.08134852,2638.0,2637.9,0.00568343]
[1748581484701,2.08134852,2638.0,2637.9,0.76371343]
[1748581484895,2.08134852,2638.0,2637.9,0.00568343]
[1748581485506,2.08134852,2638.0,2637.9,0.76371343]
[1748581485804,1.32334852,2638.0,2637.9,0.76371343]
[1748581486816,1.32409428,2638.0,2637.9,0.76371343]
[1748581491008,0.25913857,2638.0,2637.9,0.76371343]
[1748581491208,1.32461625,2638.0,2637.9,0.76371343]
[1748581493410,2.08261625,2638.0,2637.9,0.76371343]
[1748581493709,4.05111625,2638.0,2637.9,0.76371343]
[1748581494109,3.29311625,2638.0,2637.9,0.76371343]
[1748581494811,2.63381625,2638.0,2637.9,0.76371343]
[1748581495207,2.63383204,2638.0,2637.9,0.76371343]
[1748581499213,3.30123204,2638.0,2637.9,0.76371343]
[1748581499614,4.05923204,2638.0,2637.9,0.00568343]
[1748581500416,3.30123204,2638.0,2637.9,0.76371343]
[1748581501114,1.32463204,2638.0,2637.9,0.76371343]
[1748581501410,1.89427,2639.1,2638.9,0.75774]
[1748581501411,3.2078,2639.0,2638.9,0.75774]
[1748581501618,6.14206978,2639.0,2638.9,0.75774]
[1748581501813,6.14206978,2639.0,2638.8,0.75775]
[1748581502011,1.2101,2639.0,2638.9,0.75774]
[1748581502213,3.2078,2639.7,2638.7,5.7979]
[1748581502425,1.06369631,2639.6,2639.1,1.89422]
[1748581502622,1.06369631,2639.6,2639.5,0.75757]
[1748581502818,0.6421,2639.9,2639.3,3.21348343]
[1748581503022,1.2522,2639.8,2639.3,4.48208343]
[1748581503323,1.2522,2639.8,2639.4,0.6473]
[1748581503523,4.61464,2640.0,2639.8,0.75747]
[1748581503524,3.2078,2640.0,2639.8,0.75747]
[1748581504116,3.2078,2640.0,2639.9,0.75745]
[1748581504324,4.46,2640.4,2640.0,0.75741]
[1748581504623,0.75735,2640.3,2640.0,0.75741]
[1748581505025,2.00955,2640.3,2640.0,0.75741]
[1748581506626,1.2522,2640.3,2639.8,1.8927]
[1748581506819,1.2522,2640.3,2640.1,0.7574]
[1748581507120,1.2522,2640.3,2640.1,0.75739]
[1748581507322,2.00955,2640.3,2640.0,0.75741]
[1748581508420,1.2522,2640.3,2640.0,0.75741]
[1748581508623,2.00956,2640.3,2640.1,0.75739]
[1748581508824,2.00956,2640.3,2640.0,0.75741]
[1748581509025,2.00956,2640.3,2640.0,0.7574]
[1748581509224,2.00956,2640.3,2639.8,1.8927]
[1748581509526,1.2522,2640.3,2639.8,1.8927]
[1748581509827,0.75738,2640.2,2639.8,1.8927]
[1748581510226,0.75738,2640.2,2639.9,0.75743]
[1748581510427,0.75738,2640.2,2640.0,1.3092]
[1748581510619,0.7574,2640.1,2640.0,1.3092]
[1748581511226,0.7574,2640.1,2640.0,2.06663]
[1748581511519,1.2522,2640.3,2640.1,0.7574]
[1748581511716,1.2522,2640.3,2640.2,0.75737]
[1748581511913,3.2078,2640.4,2640.1,3.671]
[1748581512116,3.2078,2641.0,2640.3,3.2078]
[1748581512323,0.75721,2640.8,2640.6,0.75723]
[1748581513219,4.4481,2641.0,2640.6,0.75723]
[1748581513627,4.4481,2641.0,2640.7,0.75722]
[1748581513925,0.75722,2640.8,2640.6,0.75725]
[1748581514118,0.75722,2640.7,2640.6,0.75725]
[1748581514317,0.75722,2640.7,2640.5,5.71416]
[1748581514719,0.75725,2640.6,2640.5,5.71416]
[1748581515027,0.75725,2640.6,2640.5,4.9569]
[1748581515230,4.4481,2641.0,2640.5,4.9569]
[1748581515432,0.75725,2640.6,2640.5,1.2859]
[1748581515618,0.75725,2640.6,2640.5,4.9569]
[1748581516125,0.75724,2640.7,2640.5,5.71418]
[1748581517224,0.75725,2640.6,2640.5,4.9569]
[1748581517430,0.75728,2640.5,2640.4,0.6256]
[1748581517632,1.89314,2640.6,2640.0,3.67]
[1748581517822,0.7574,2640.1,2640.0,3.67]
[1748581518027,3.9652,2640.1,2640.0,3.67]
[1748581518324,0.7576,2639.4,2639.0,3.67]
[1748581518521,3.9654,2639.4,2639.0,3.67]
[1748581518719,3.2078,2639.4,2639.3,0.76331343]
[1748581518926,4.5378,2639.8,2639.3,0.00568343]
[1748581519222,0.7576,2639.4,2639.3,0.00568343]
[1748581519622,0.6686,2639.7,2639.3,0.76329343]
[1748581519823,0.75759,2639.5,2639.3,0.00568343]
[1748581520027,0.7576,2639.4,2639.3,0.00568343]
[1748581520226,0.75758,2639.5,2639.3,0.00568343]
[1748581520433,2.08756,2639.6,2639.3,0.76330343]
[1748581520625,2.08756,2639.6,2639.4,0.75759]
[1748581520823,0.75757,2639.5,2639.3,0.76330343]
[1748581521022,0.75757,2639.5,2639.3,0.00568343]
[1748581521623,2.08756,2639.6,2639.3,0.76329343]
[1748581522028,1.33,2639.6,2639.4,1.2757]
[1748581522234,0.75753,2639.7,2639.4,2.66327]
[1748581522431,0.75753,2639.7,2639.4,6.33327]
[1748581522734,0.75757,2639.5,2639.4,5.5757]
[1748581524829,0.75757,2639.5,2639.4,4.3]
[1748581525629,0.75757,2639.5,2639.4,4.301]
[1748581527528,0.7576,2639.4,2639.3,0.00568343]
[1748581528240,2.0781,2639.4,2639.3,0.00568343]
[1748581530839,3.12103967,2639.4,2639.3,0.00568343]
[1748581531439,8.12103967,2639.4,2639.3,0.00568343]
[1748581531939,0.75774,2638.9,2638.8,3.671]
[1748581532235,3.96554,2638.9,2638.8,3.671]
[1748581533440,0.7578,2638.7,2638.6,4.43451343]
[1748581533640,0.7578,2638.7,2638.6,3.67668343]
[1748581534034,0.7578,2638.7,2638.6,4.43451343]
[1748581534236,0.75779,2638.8,2638.6,3.67668343]
[1748581534438,0.75779,2638.8,2638.6,4.43448343]
[1748581535739,0.75779,2638.8,2638.7,0.7578]
[1748581536942,1.98789,2638.8,2638.7,0.7578]
[1748581538645,3.2078,2638.9,2638.8,0.75777]
[1748581538939,3.96554,2638.9,2638.8,0.75777]
[1748581539841,0.75774,2638.9,2638.8,0.75777]
[1748581540341,0.75777,2638.8,2638.7,2.06068]
[1748581540841,0.75777,2638.8,2638.7,1.3029]
[1748581541241,0.7578,2638.7,2638.6,3.67668343]
[1748581541738,0.00568343,2639.1,2638.6,3.67668343]
[1748581541941,0.00568343,2639.1,2639.0,3.96551]
[1748581542139,0.00568343,2639.1,2639.0,7.63651]
[1748581543340,0.76336343,2639.1,2639.0,6.8788]
[1748581543537,0.76336343,2639.1,2639.0,7.63651]
[1748581544038,0.00568343,2639.1,2639.0,7.63651]
[1748581546447,0.75771,2639.0,2638.9,1.3274]
[1748581546647,0.75774,2638.9,2638.8,4.8799]
[1748581547845,0.75774,2638.9,2638.8,1.2089]
[1748581548149,0.7578,2638.7,2638.6,0.00568343]
[1748581548749,1.9644,2638.7,2638.6,0.00568343]
[1748581552053,3.00986285,2638.7,2638.6,0.00568343]
[1748581553244,1.04546285,2638.7,2638.6,0.76351343]
[1748581553445,0.75777,2638.8,2638.6,0.76351343]
[1748581553750,0.75777,2638.8,2638.6,0.76349343]
[1748581553956,0.75777,2638.8,2638.7,0.7578]
[1748581554259,0.7578,2638.7,2638.6,0.76349343]
[1748581554556,0.7578,2638.7,2638.6,0.00568343]
[1748581555056,0.75779,2638.8,2638.6,0.00568343]
[1748581555357,0.75779,2638.8,2638.6,0.76349343]
[1748581555558,0.75779,2638.8,2638.6,0.00568343]